bitfinex/quotes_ETHUSD_20250323
["timestamp","ask_amount","ask_price","bid_price","bid_amount"]
[1742770282912,3.50023449,1988.2,1987.8,5.03064]
[1742770283102,3.50023449,1988.2,1987.8,4.921]
[1742770283103,3.50023449,1988.0,1987.8,4.921]
[1742770283591,0.14847349,1987.9,1987.8,4.921]
[1742770283991,0.14847349,1987.9,1987.8,5.916181]
[1742770284204,0.14847349,1987.9,1987.8,10.946861]
[1742770284405,3.50023449,1988.2,1987.8,10.946861]
[1742770284592,0.14831751,1987.9,1987.8,10.946861]
[1742770284920,3.0,1988.3,1987.8,10.946861]
[1742770285107,3.0,1988.3,1987.9,6.657]
[1742770285902,3.0,1988.3,1988.0,5.03008]
[1742770286313,3.0,1988.3,1988.0,10.11042571]
[1742770286822,3.50023449,1988.4,1988.1,5.02984]
[1742770287186,5.07403449,1988.6,1988.1,5.08008411]
[1742770287522,5.07403449,1988.6,1988.2,9.94956]
[1742770288229,5.07403449,1988.6,1988.2,9.94955]
[1742770288527,5.07403449,1988.6,1988.3,5.02939]
[1742770288825,5.07403449,1988.6,1988.2,9.94955]
[1742770288984,5.07403449,1988.6,1988.2,10.944505]
[1742770289604,5.07403449,1988.6,1988.2,10.944485]
[1742770290219,5.07403449,1988.6,1988.2,15.974045]
[1742770290520,5.07403449,1988.6,1988.2,15.974035]
[1742770290820,5.07403449,1988.6,1988.3,1.6267]
[1742770290821,3.50023449,1988.6,1988.3,1.6267]
[1742770291021,3.50023449,1988.6,1988.3,7.9130785]
[1742770291224,3.50023449,1988.6,1988.4,5.02907]
[1742770291914,1.5738,1989.0,1988.5,5.02876]
[1742770292125,3.50023449,1988.8,1988.6,4.912]
[1742770295546,3.0,1988.7,1988.5,4.91]
[1742770296138,5.04733449,1988.6,1988.4,4.909]
[1742770297149,3.0,1988.5,1988.3,4.908]
[1742770298227,3.0,1988.7,1988.4,5.0291]
[1742770298649,3.0,1988.9,1988.6,5.02866]
[1742770298941,3.0,1989.0,1988.7,9.93739]
[1742770299262,5.02714,1989.2,1988.7,9.9373]
[1742770299447,3.0,1989.1,1988.7,9.93724]
[1742770299648,8.52737449,1989.2,1988.8,0.993724]
[1742770300446,3.50023449,1989.0,1988.7,4.909]
[1742770301529,3.50023449,1989.0,1988.7,9.93731]
[1742770302146,1.5471,1989.3,1988.9,5.02789]
[1742770302333,3.50023449,1989.2,1988.8,6.53351]
[1742770304752,3.50023449,1989.2,1988.8,1.5054]
[1742770305060,3.50023449,1989.2,1988.8,7.677803]
[1742770311272,3.50023449,1989.2,1988.8,2.649663]
[1742770311967,3.50023449,1989.2,1988.8,7.677813]
[1742770312175,3.0,1989.1,1988.8,7.677813]
[1742770312474,3.0,1989.1,1988.9,5.02779]
[1742770312676,3.0,1989.1,1988.9,6.2983503]
[1742770313048,3.50023449,1989.2,1988.9,6.2983503]
[1742770313576,3.50023449,1989.2,1988.9,1.2705603]
[1742770313875,0.15436323,1989.1,1988.9,1.2705603]
[1742770314875,0.15436323,1989.1,1988.9,6.2983703]
[1742770315036,0.15436323,1989.1,1989.0,0.62983703]
[1742770315447,0.05436323,1989.1,1989.0,0.62983703]
[1742770315769,0.1460299,1989.1,1989.0,5.65748703]
[1742770315949,3.50023449,1989.3,1989.0,5.65748703]
[1742770316148,0.14623598,1989.2,1989.1,4.878]
[1742770316332,0.14623598,1989.2,1989.1,6.4342967]
[1742770318673,0.14623598,1989.2,1989.1,4.878]
[1742770318970,0.14623598,1989.2,1989.0,4.876]
[1742770319178,3.50023449,1989.1,1989.0,4.876]
[1742770319333,3.64693381,1989.1,1989.0,4.876]
[1742770320350,0.14669932,1989.1,1989.0,9.90365]
[1742770320684,3.01,1989.4,1989.1,5.02734]
[1742770320980,3.01,1989.4,1989.1,10.05462]
[1742770321135,3.01,1989.4,1989.1,5.02728]
[1742770321338,3.01,1989.4,1989.2,5.02698]
[1742770321794,3.01,1989.4,1989.1,5.57732]
[1742770321978,3.01,1989.4,1989.2,0.557732]
[1742770322976,0.14684319,1989.3,1989.2,0.557732]
[1742770323272,3.01,1989.4,1989.2,5.584762]
[1742770323440,0.14684319,1989.3,1989.2,5.584762]
[1742770323979,3.01,1989.4,1989.2,10.611772]
[1742770324181,0.01,1989.4,1989.3,7.6270672]
[1742770324970,0.01,1989.4,1989.3,8.1770672]
[1742770328778,0.16045531,1989.4,1989.3,8.1770672]
[1742770331380,0.16045531,1989.4,1989.3,2.6001772]
[1742770331559,0.16045531,1989.4,1989.3,5.9161772]
[1742770332576,0.16045531,1989.4,1989.3,10.9430672]
[1742770332778,0.16045531,1989.4,1989.3,13.1037672]
[1742770332980,0.01,1989.4,1989.3,13.1037672]
[1742770333200,0.14686578,1989.4,1989.3,13.1037672]
[1742770336662,0.01,1989.4,1989.3,13.1037672]
[1742770337301,0.14695047,1989.4,1989.3,13.1037672]
[1742770337504,0.01,1989.4,1989.3,13.1037672]
[1742770337722,0.14691153,1989.4,1989.3,13.1037672]
[1742770338985,0.01,1989.4,1989.3,13.1037672]
[1742770339392,0.14716965,1989.4,1989.3,13.1037672]
[1742770339582,0.01,1989.4,1989.3,13.1037672]
[1742770341070,0.14730503,1989.4,1989.3,13.1037672]
[1742770341301,0.01,1989.4,1989.3,13.1037672]
[1742770341472,0.14740147,1989.4,1989.3,13.1037672]
[1742770341673,0.01,1989.4,1989.3,13.1037672]
[1742770341904,0.14712942,1989.4,1989.3,13.1037672]
[1742770342103,0.01,1989.4,1989.3,13.1037672]
[1742770342601,0.14716837,1989.4,1989.3,13.1037672]
[1742770357588,0.14716837,1989.4,1989.3,11.4930672]
[1742770357786,0.14716837,1989.4,1989.3,10.43189]
[1742770358814,0.14716837,1989.4,1989.3,5.02689]
[1742770359020,0.14716837,1989.4,1989.1,5.02737]
[1742770359197,2.19246898,1989.3,1989.2,4.808]
[1742770359515,2.32869435,1989.3,1989.2,4.808]
[1742770359722,3.97559435,1989.3,1989.2,4.808]
[1742770363491,3.97559435,1989.3,1989.1,0.55]
[1742770363790,3.97559435,1989.3,1989.1,5.35]
[1742770364364,3.97559435,1989.3,1989.1,5.57718]
[1742770364540,3.97559435,1989.3,1989.1,10.37618]
[1742770365492,9.00262435,1989.3,1989.1,4.799]
[1742770366008,3.97559435,1989.3,1989.1,4.799]
[1742770368823,3.97559435,1989.3,1988.9,27.814]
[1742770369024,3.97559435,1989.3,1988.8,4.795]
[1742770369025,6.58916,1989.0,1988.8,4.795]
[1742770369195,3.63403364,1988.9,1988.8,4.795]
[1742770369931,8.66205364,1988.9,1988.6,4.795]
[1742770370116,3.63403364,1988.9,1988.6,9.82361]
[1742770370330,8.66195364,1988.9,1988.6,4.795]
[1742770371151,3.63403364,1988.9,1988.6,4.795]
[1742770371461,3.63403364,1988.9,1988.6,9.82362]
[1742770372565,8.66199364,1988.9,1988.6,4.795]
[1742770373254,8.66199364,1988.9,1988.6,9.82365]
[1742770374437,8.66199364,1988.9,1988.6,4.795]
[1742770375569,3.50023449,1988.7,1988.5,9.82084]
[1742770375780,3.50023449,1988.7,1988.5,15.886744]
[1742770376068,0.1352489,1988.6,1988.5,10.857904]
[1742770376369,0.1352489,1988.6,1988.5,5.829084]
[1742770376577,0.1352489,1988.6,1988.5,4.792]
[1742770377477,0.1352489,1988.6,1988.5,9.82091]
[1742770377671,0.1352489,1988.6,1988.5,5.02891]
[1742770377969,0.1352489,1988.6,1988.4,10.37109]
[1742770378338,0.1352489,1988.6,1988.4,15.40009]
[1742770378538,0.1352489,1988.6,1988.4,14.849599]
[1742770380359,0.1352489,1988.6,1988.5,5.02891]
[1742770380569,0.1352489,1988.6,1988.5,10.70332759]
[1742770380788,10.14672449,1989.3,1988.9,5.02766]
[1742770381075,0.13349608,1989.2,1988.9,9.81966]
[1742770381905,0.13349608,1989.2,1989.0,5.02753]
[1742770382572,3.50023449,1989.1,1988.9,4.792]
[1742770382872,0.13300699,1989.0,1988.9,4.792]
[1742770383776,11.80812699,1989.0,1988.6,5.0286]
[1742770384084,8.52814449,1988.9,1988.7,4.792]
[1742770384459,0.13345781,1988.8,1988.7,4.792]
[1742770384658,8.52814449,1988.9,1988.7,4.792]
[1742770384869,0.13338008,1988.8,1988.7,4.792]
[1742770385068,0.13338008,1988.8,1988.6,4.792]
[1742770385269,8.52814449,1988.9,1988.6,4.792]
[1742770385483,0.13338008,1988.8,1988.6,4.792]
[1742770385791,8.52814449,1988.9,1988.6,4.792]
[1742770385989,0.13338008,1988.8,1988.6,4.792]
[1742770386181,8.52814449,1988.9,1988.6,4.792]
[1742770386492,0.13338008,1988.8,1988.6,4.792]
[1742770386799,3.50023449,1988.9,1988.6,9.82064]
[1742770387086,0.13341894,1988.8,1988.6,9.82064]
[1742770387268,0.13341894,1988.8,1988.6,4.792]
[1742770387469,8.52814449,1988.9,1988.6,4.792]
[1742770387682,0.13326338,1988.8,1988.6,4.792]
[1742770387859,8.52814449,1988.9,1988.6,4.792]
[1742770388059,0.13326338,1988.8,1988.6,4.792]
[1742770388287,8.52814449,1988.9,1988.6,4.792]
[1742770388490,0.13309625,1988.7,1988.6,4.792]
[1742770388686,8.52814449,1988.9,1988.6,4.792]
[1742770388891,0.13309625,1988.7,1988.6,4.792]
[1742770389054,8.52814449,1988.9,1988.6,4.792]
[1742770389260,0.13326329,1988.8,1988.6,4.792]
[1742770389500,8.52814449,1988.9,1988.6,4.792]
[1742770389998,0.13284521,1988.8,1988.6,4.792]
[1742770390291,8.52814449,1988.9,1988.6,4.792]
[1742770390489,0.13271696,1988.7,1988.6,4.792]
[1742770390798,0.13267799,1988.7,1988.6,4.792]
[1742770391096,8.52814449,1988.9,1988.6,4.792]
[1742770391561,0.13296182,1988.8,1988.6,4.792]
[1742770391761,8.52814449,1988.9,1988.6,4.792]
[1742770391983,0.13272804,1988.8,1988.6,4.792]
[1742770392184,8.52814449,1988.9,1988.6,4.792]
[1742770392385,0.13272804,1988.8,1988.6,4.792]
[1742770392701,8.52814449,1988.9,1988.6,4.792]
[1742770392873,0.1325609,1988.7,1988.6,4.792]
[1742770393056,8.52814449,1988.9,1988.6,4.792]
[1742770393257,0.13272804,1988.8,1988.6,4.792]
[1742770393696,8.52814449,1988.9,1988.6,4.792]
[1742770393894,0.13259987,1988.7,1988.6,4.792]
[1742770394493,8.52814449,1988.9,1988.6,4.792]
[1742770394694,0.13263874,1988.7,1988.6,4.792]
[1742770395085,8.52814449,1988.9,1988.6,4.792]
[1742770395290,0.13272804,1988.8,1988.6,4.792]
[1742770395616,8.52814449,1988.9,1988.6,4.792]
[1742770395764,0.13276691,1988.8,1988.6,4.792]
[1742770395970,8.52814449,1988.9,1988.6,4.792]
[1742770396403,0.13280587,1988.8,1988.6,4.792]
[1742770396578,8.52814449,1988.9,1988.6,4.792]
[1742770396781,0.13280587,1988.8,1988.6,4.792]
[1742770396979,8.52814449,1988.9,1988.6,4.792]
[1742770397301,0.13280587,1988.8,1988.6,4.792]
[1742770397598,8.52814449,1988.9,1988.6,4.792]
[1742770397813,0.13276691,1988.8,1988.6,4.792]
[1742770397962,8.52814449,1988.9,1988.6,4.792]
[1742770398167,0.13276691,1988.8,1988.6,4.792]
[1742770398364,8.52814449,1988.9,1988.6,4.792]
[1742770398579,0.13280587,1988.8,1988.6,4.792]
[1742770398781,8.52814449,1988.9,1988.6,9.82062]
[1742770399301,0.13280587,1988.8,1988.6,9.82062]
[1742770399702,3.50023449,1988.9,1988.6,9.82062]
[1742770399874,0.13263874,1988.7,1988.6,9.82062]
[1742770400073,3.50023449,1988.9,1988.6,9.82062]
[1742770400274,0.13280587,1988.8,1988.6,4.792]
[1742770400573,0.13263874,1988.7,1988.6,4.792]
[1742770400795,8.52823449,1988.9,1988.6,4.792]
[1742770400991,0.13280587,1988.8,1988.6,4.792]
[1742770401201,8.52823449,1988.9,1988.6,4.792]
[1742770401405,0.13272813,1988.8,1988.6,4.792]
[1742770401687,8.52823449,1988.9,1988.6,4.792]
[1742770401916,0.132767,1988.8,1988.6,4.792]
[1742770402103,0.132767,1988.8,1988.6,9.82063]
[1742770402309,8.52823449,1988.9,1988.6,4.792]
[1742770402903,2.31330055,1988.8,1988.6,4.792]
[1742770405301,2.31330055,1988.8,1988.6,9.82054]
[1742770407011,2.31330055,1988.8,1988.6,4.792]
[1742770407198,2.31330055,1988.8,1988.6,9.82061]
[1742770407998,0.13245536,1988.8,1988.7,5.02841]
[1742770408173,3.0,1989.3,1989.0,5.02745]
[1742770408380,0.13333502,1989.2,1988.9,5.02789]
[1742770408578,2.31418021,1989.2,1989.0,4.792]
[1742770409089,2.31418021,1989.2,1989.0,9.81961]
[1742770409289,2.31418021,1989.2,1989.0,4.792]
[1742770409810,0.13333502,1989.2,1989.0,4.792]
[1742770410013,2.31418021,1989.2,1989.0,4.792]
[1742770410907,0.13333502,1989.2,1989.0,4.792]
[1742770412412,5.02692,1989.3,1989.0,4.792]
[1742770412712,0.1332201,1989.2,1989.0,4.792]
[1742770413325,1e-07,1989.2,1989.1,6.61179]
[1742770413483,0.01,1989.4,1989.3,6.61129]
[1742770417686,0.01,1989.4,1989.3,7.16129]
[1742770419310,0.01,1989.4,1989.3,5.57689]
[1742770419613,0.01,1989.4,1989.3,8.23629981]
[1742770422721,0.01,1989.4,1989.3,11.73982864]
[1742770435216,1e-05,1989.4,1989.3,11.73982864]
[1742770437632,1e-05,1989.4,1989.3,14.73982864]
[1742770438324,1e-05,1989.4,1989.3,16.25124864]
[1742770444703,1e-05,1989.4,1989.3,21.55624864]
[1742770445401,1.579,1990.4,1990.3,5.02436]
[1742770445748,1.579,1990.8,1990.5,5.02367]
[1742770445949,1.579,1990.8,1990.6,5.5735]
[1742770446138,1.579,1990.8,1990.7,9.81235]
[1742770447333,0.01,1990.9,1990.8,5.0231]
[1742770447537,0.01,1990.9,1990.8,5.5731]
[1742770447736,0.01,1990.9,1990.8,7.46199788]
[1742770447946,0.01,1990.9,1990.7,9.81235]
[1742770448158,1.6663,1990.8,1990.6,5.57351]
[1742770448462,1.6663,1990.8,1990.7,4.788]
[1742770448624,1.6663,1990.8,1990.7,9.81135]
[1742770448950,1.79140394,1990.8,1990.7,9.81135]
[1742770449260,1.79140394,1990.8,1990.7,4.788]
[1742770449427,0.12510394,1990.8,1990.7,11.397492]
[1742770449629,0.01,1990.9,1990.8,5.5731]
[1742770449963,1.6663,1990.8,1990.7,6.059392]
[1742770450126,1.6663,1990.8,1990.7,11.397392]
[1742770450327,1.79139722,1990.8,1990.7,11.397392]
[1742770450530,1.79139722,1990.8,1990.7,6.609392]
[1742770450736,1.79139722,1990.8,1990.7,6.374142]
[1742770451349,1.79139722,1990.8,1990.7,11.397492]
[1742770454330,1.79139722,1990.8,1990.7,10.36135]
[1742770454532,6.81453722,1990.8,1990.5,5.02385]
[1742770454732,6.81453722,1990.8,1990.6,4.787]
[1742770454938,10.19296883,1990.8,1990.4,5.02408]
[1742770455150,10.19296883,1990.8,1990.5,4.787]
[1742770455340,0.12705377,1990.7,1990.4,5.02408]
[1742770455740,1.6663,1990.6,1990.5,4.787]
[1742770455942,1.6663,1990.6,1990.4,5.02408]
[1742770456152,1.79326479,1990.6,1990.4,5.02408]
[1742770456356,1.79326479,1990.6,1990.5,4.787]
[1742770456549,1.6663,1990.5,1990.1,5.02483]
[1742770456743,6.69025,1990.5,1990.2,4.787]
[1742770456975,0.12596772,1990.4,1990.2,4.787]
[1742770457139,0.12596772,1990.4,1990.1,5.02473]
[1742770457345,1.6663,1990.3,1990.2,4.787]
[1742770457656,1.7921009,1990.3,1990.2,4.787]
[1742770460837,1.7921009,1990.3,1990.2,9.81162]
[1742770461768,0.1258009,1990.3,1990.2,9.81162]
[1742770462143,1.6057,1990.5,1990.2,9.86186016]
[1742770462334,0.12537291,1990.3,1990.2,9.86186016]
[1742770462539,1.6057,1990.5,1990.2,11.35051618]
[1742770462739,0.12553975,1990.4,1990.2,11.30027602]
[1742770462971,0.12553975,1990.4,1990.2,11.30016602]
[1742770463142,0.12553975,1990.4,1990.3,5.02436]
[1742770463842,0.12553975,1990.4,1990.2,11.30022602]
[1742770464166,0.12553975,1990.4,1990.2,16.32459602]
[1742770464372,0.12553975,1990.4,1990.2,11.30011602]
[1742770464675,0.12553975,1990.4,1990.2,9.81146]
[1742770464971,0.12553975,1990.4,1990.3,5.02436]
[1742770465172,0.12553975,1990.4,1990.2,9.81146]
[1742770465473,0.12553975,1990.4,1990.2,4.787]
[1742770466186,0.12553975,1990.4,1990.3,5.57436]
[1742770466480,0.12553975,1990.4,1990.3,7.11797801]
[1742770466641,1.6057,1990.7,1990.5,5.02384]
[1742770466842,1.6057,1990.7,1990.6,4.787]
[1742770477447,6.62905,1990.7,1990.6,4.787]
[1742770477655,5.02402,1990.5,1990.4,4.787]
[1742770477963,6.64122,1990.5,1990.4,4.787]
[1742770478276,11.66527,1990.5,1990.3,4.787]
[1742770478677,6.64122,1990.5,1990.3,4.787]
[1742770478872,0.12461365,1990.4,1990.3,4.787]
[1742770482984,0.12461365,1990.4,1990.3,6.9749]
[1742770483160,0.12461365,1990.4,1990.3,11.99926]
[1742770483362,3.0,1990.6,1990.3,11.99926]
[1742770483585,3.0,1990.6,1990.4,0.55]
[1742770483772,3.0,1990.6,1990.4,5.57409]
[1742770483970,3.0,1990.6,1990.4,7.331409]
[1742770484288,3.0,1990.6,1990.4,7.331299]
[1742770484952,3.0,1990.6,1990.4,2.307319]
[1742770485986,5.02339,1990.7,1990.4,2.307319]
[1742770486157,5.02321,1990.8,1990.4,7.331179]
[1742770486357,5.02337,1990.7,1990.4,7.331179]
[1742770487003,8.03293,1990.9,1990.5,5.02376]
[1742770487290,5.02319,1990.8,1990.5,0.7331179]
[1742770488398,0.01,1990.9,1990.6,2.2042]
[1742770488604,0.01,1990.9,1990.7,4.787]
[1742770489461,0.01,1990.9,1990.7,9.81024]
[1742770489664,0.01,1990.9,1990.8,0.981024]
[1742770492103,5.02322,1990.8,1990.6,4.786]
[1742770492286,5.02336,1990.7,1990.4,7.22921]
[1742770492488,5.02336,1990.7,1990.6,4.786]
[1742770494180,5.14973006,1990.7,1990.6,4.786]
[1742770495915,0.12637006,1990.7,1990.6,4.786]
[1742770496685,0.12637006,1990.7,1990.6,11.46481]
[1742770496911,0.01,1990.9,1990.6,13.11869861]
[1742770497117,0.12642013,1990.8,1990.6,13.11869861]
[1742770498016,0.12642013,1990.8,1990.6,13.11859861]
[1742770498219,0.12642013,1990.8,1990.6,11.46339861]
[1742770499719,0.12642013,1990.8,1990.7,5.02335]
[1742770499932,0.07642013,1990.8,1990.7,6.67202486]
[1742770500142,0.12302534,1990.8,1990.7,6.67202486]
[1742770501108,0.12302534,1990.8,1990.7,7.27225404]
[1742770501301,0.12302534,1990.8,1990.7,8.92745404]
[1742770502089,0.12302534,1990.8,1990.7,8.87722486]
[1742770502525,0.12302534,1990.8,1990.7,7.22202486]
[1742770502728,0.12302534,1990.8,1990.7,5.57335]
[1742770503145,0.12302534,1990.8,1990.3,0.5337]
[1742770503350,1.5342,1990.7,1990.4,9.80998]
[1742770503640,0.12272394,1990.6,1990.4,9.80998]
[1742770504044,0.12272394,1990.6,1990.3,5.02436]
[1742770504198,0.12272394,1990.6,1990.4,4.786]
[1742770504644,0.12272394,1990.6,1990.5,5.57386]
[1742770505151,0.01,1990.9,1990.6,5.02336]
[1742770505352,0.01,1990.9,1990.6,10.0468]
[1742770505626,0.01,1990.9,1990.7,5.02331]
[1742770507054,0.01,1990.9,1990.7,5.0232]
[1742770507241,0.01,1990.9,1990.7,5.52552]
[1742770507410,0.01,1990.9,1990.8,12.0199]
[1742770508513,0.01,1990.9,1990.8,10.3581]
[1742770511119,0.01,1990.9,1990.8,12.0199]
[1742770512632,0.01,1990.9,1990.8,5.5731]
[1742770512831,0.01,1990.9,1990.8,10.3581]
[1742770513033,0.01,1990.9,1990.8,7.161462]
[1742770513234,0.01,1990.9,1990.8,11.946462]
[1742770517652,0.01,1990.9,1990.8,13.608262]
[1742770521355,0.13266507,1990.9,1990.8,13.608262]
[1742770521537,0.01,1990.9,1990.8,13.608262]
[1742770523231,0.13278282,1990.9,1990.8,13.608262]
[1742770523559,0.13258898,1990.9,1990.8,13.608262]
[1742770524462,0.13258898,1990.9,1990.8,8.823262]
[1742770524659,0.13258898,1990.9,1990.8,13.607262]
[1742770525031,0.13258898,1990.9,1990.8,17.11079083]
[1742770525273,0.01,1990.9,1990.8,17.11079083]
[1742770526355,1e-05,1990.9,1990.8,20.11079083]
[1742770530039,1e-05,1990.9,1990.8,21.11148533]
[1742770530960,1e-05,1990.9,1990.8,12.8239565]
[1742770531164,1e-05,1990.9,1990.8,48.89548533]
[1742770534266,1e-05,1990.9,1990.8,41.11248533]
[1742770534481,1e-05,1990.9,1990.8,37.0589565]
[1742770534639,1e-05,1990.9,1990.8,40.1801565]
[1742770535164,1e-05,1990.9,1990.8,40.7301565]
[1742770535559,0.12617024,1990.9,1990.8,40.7301565]
[1742770535761,1e-05,1990.9,1990.8,40.7301565]
[1742770537170,0.12620914,1990.9,1990.8,40.7301565]
[1742770537387,1e-05,1990.9,1990.8,40.7301565]
[1742770539489,0.12622859,1990.9,1990.8,40.7301565]
[1742770539649,1e-05,1990.9,1990.8,40.7301565]
[1742770540050,0.12618969,1990.9,1990.8,40.7301565]
[1742770540280,1e-05,1990.9,1990.8,40.7301565]
[1742770540478,0.12622859,1990.9,1990.8,40.7301565]
[1742770540688,1e-05,1990.9,1990.8,40.7301565]
[1742770541393,0.12618969,1990.9,1990.8,40.7301565]
[1742770541604,0.12618969,1990.9,1990.8,35.9471565]
[1742770541763,0.12618969,1990.9,1990.8,40.7301565]
[1742770542391,1e-05,1990.9,1990.8,40.7301565]
[1742770543694,1e-05,1990.9,1990.8,44.23368533]
[1742770543853,1e-05,1990.9,1990.8,45.84898533]
[1742770544253,1e-05,1990.9,1990.8,48.84898533]
[1742770547155,1e-05,1990.9,1990.8,48.84798533]
[1742770561707,9.2e-06,1991.2,1991.1,6.67714]
[1742770561870,9.2e-06,1991.2,1991.1,11.95083928]
[1742770562072,9.2e-06,1991.2,1991.1,11.90063283]
[1742770562473,9.2e-06,1991.2,1991.1,14.90063283]
[1742770566124,9.2e-06,1991.2,1991.1,42.68063283]
[1742770569486,9.2e-06,1991.2,1991.1,43.71034874]
[1742770572620,9.2e-06,1991.2,1991.1,43.96031929]
[1742770573696,9.2e-06,1991.2,1991.1,51.96031929]
[1742770575845,9.2e-06,1991.2,1991.1,43.96031929]
[1742770579731,9.2e-06,1991.2,1991.1,43.96143083]
[1742770579938,9.2e-06,1991.2,1991.1,43.71034874]
[1742770581134,9.2e-06,1991.2,1991.1,43.95787045]
[1742770584330,9.2e-06,1991.2,1991.1,43.71034874]
[1742770585012,0.3994,1992.0,1991.1,43.71034874]
[1742770585013,0.3994,1992.0,1991.9,5.02033]
[1742770585211,0.53221171,1992.0,1991.9,10.851363]
[1742770587606,0.3994,1992.0,1991.9,10.851363]
[1742770588335,0.3994,1992.0,1991.9,11.2196674]
[1742770590733,0.53210861,1992.0,1991.9,11.2196674]
[1742770591331,0.53210861,1992.0,1991.9,5.57033]
[1742770591668,3.6362763,1992.0,1991.9,4.779]
[1742770592026,3.6362763,1992.0,1991.9,5.329]
[1742770592254,0.3994,1991.9,1991.6,5.02103]
[1742770592451,0.13301774,1991.8,1991.7,4.779]
[1742770592655,0.13301774,1991.8,1991.5,32.79431]
[1742770592656,0.3994,1991.7,1991.5,32.79431]
[1742770592877,0.3994,1991.7,1991.6,5.329]
[1742770593469,0.3994,1991.7,1991.6,10.35008]
[1742770593639,0.3994,1991.7,1991.6,9.80008]
[1742770594040,0.3994,1991.7,1991.6,10.35008]
[1742770597368,0.3994,1991.7,1991.6,14.664505]
[1742770597885,0.3981,1992.1,1991.9,5.02033]
[1742770598086,0.3981,1992.1,1992.0,4.779]
[1742770598958,0.53165644,1992.1,1992.0,4.779]
[1742770604390,5.55147644,1992.1,1992.0,4.779]
[1742770613090,0.53165644,1992.1,1992.0,4.779]
[1742770619754,5.55147644,1992.1,1992.0,4.779]
[1742770620264,0.53165644,1992.1,1992.0,4.779]
[1742770620854,2.70540231,1992.1,1992.0,4.779]
[1742770622317,0.3981,1991.9,1991.6,5.571]
[1742770622514,2.17374587,1991.7,1991.6,5.571]
[1742770622721,2.17374587,1991.7,1991.6,10.348]
[1742770623231,2.30593595,1991.7,1991.6,10.348]
[1742770630374,2.30593595,1991.7,1991.6,11.88491]
[1742770630575,0.13219008,1991.7,1991.6,12.82631]
[1742770632088,0.13219008,1991.7,1991.6,11.88491]
[1742770633917,2.30593595,1991.7,1991.6,11.88491]
[1742770634107,2.30593595,1991.7,1991.6,10.348]
[1742770635007,2.30593595,1991.7,1991.6,10.25029027]
[1742770635697,2.17374587,1991.7,1991.6,10.25029027]
[1742770637020,2.30491195,1991.7,1991.6,10.25029027]
[1742770643249,0.13116608,1991.7,1991.6,10.25029027]
[1742770644321,0.13116608,1991.7,1991.6,12.6767293]
[1742770644527,2.17374587,1991.9,1991.8,5.02058]
[1742770644818,2.17374587,1992.0,1991.9,5.02033]
[1742770647329,2.17374587,1992.0,1991.7,5.02075]
[1742770647625,2.57164587,1991.8,1991.5,9.79724]
[1742770647927,2.17374587,1991.6,1991.5,10.34724]
[1742770648403,2.17374587,1991.6,1991.5,5.57124]
[1742770648607,2.17374587,1991.6,1991.5,4.776]
[1742770649120,2.17374587,1991.6,1991.4,9.79755]
[1742770649320,2.17374587,1991.5,1991.4,10.34755]
[1742770650000,2.17374587,1991.5,1991.4,4.776]
[1742770650195,2.57164587,1991.5,1991.4,4.776]
[1742770650597,2.70185358,1991.5,1991.4,4.776]
[1742770655135,2.30395358,1991.5,1991.4,4.776]
[1742770655301,0.13020771,1991.5,1991.4,4.776]
[1742770655630,0.13020771,1991.5,1991.4,9.79759]
[1742770655834,0.13020771,1991.5,1991.4,11.918914]
[1742770656031,0.13020771,1991.5,1991.4,12.812914]
[1742770656221,2.17374587,1991.8,1991.7,0.55]
[1742770656727,2.30268671,1991.8,1991.7,5.57081]
[1742770657332,2.30268671,1991.8,1991.7,0.55]
[1742770657740,2.30268671,1991.8,1991.7,5.57083]
[1742770661043,2.30268671,1991.8,1991.7,0.55]
[1742770663326,2.30268671,1991.8,1991.7,5.57083]
[1742770665828,2.30268671,1991.8,1991.7,6.46483]
[1742770666139,0.12894084,1991.8,1991.7,6.46483]
[1742770666323,0.12894084,1991.8,1991.7,7.613398]
[1742770666843,2.17374587,1991.9,1991.7,12.634048]
[1742770667039,2.17374587,1991.9,1991.8,9.79658]
[1742770667239,5.41904,1992.3,1991.9,5.02031]
[1742770667240,2.17374587,1992.0,1991.9,5.02031]
[1742770667833,2.17374587,1992.2,1992.1,5.01964]
[1742770668151,2.17374587,1992.2,1992.1,9.79464]
[1742770668446,2.17374587,1992.3,1992.2,5.01949]
[1742770671053,0.01,1992.4,1992.2,5.01949]
[1742770671054,3.50215505,1992.4,1992.2,5.01949]
[1742770671545,0.01,1992.4,1992.3,5.56932]
[1742770672236,0.01,1992.4,1992.3,6.719641]
[1742770672419,0.01,1992.4,1992.3,7.634041]
[1742770672614,0.01,1992.4,1992.3,7.68422406]
[1742770672950,0.01,1992.4,1992.3,7.634041]
[1742770673457,0.13119909,1992.4,1992.3,7.634041]
[1742770673639,0.01,1992.4,1992.3,7.634041]
[1742770673818,0.13119909,1992.4,1992.3,7.634041]
[1742770674023,0.01,1992.4,1992.3,12.409041]
[1742770674256,0.13392902,1992.4,1992.3,11.494641]
[1742770674449,0.13392902,1992.4,1992.3,4.774]
[1742770674656,0.13392902,1992.4,1992.2,0.55]
[1742770674826,0.13392902,1992.4,1992.3,4.774]
[1742770676148,0.13392902,1992.4,1992.2,4.774]
[1742770676356,3.49215505,1992.3,1992.2,4.774]
[1742770676855,3.61626723,1992.3,1992.2,4.774]
[1742770681226,4.01596723,1992.3,1992.2,4.774]
[1742770681426,4.01596723,1992.3,1992.2,4.773]
[1742770681946,4.01596723,1992.3,1992.0,5.02002]
[1742770682260,4.01596723,1992.3,1992.1,4.773]
[1742770682437,3.49215505,1992.1,1992.0,4.773]
[1742770682758,3.6150386,1992.1,1991.7,5.02072]
[1742770682961,3.49215505,1991.9,1991.8,4.773]
[1742770683456,3.61451272,1991.9,1991.8,5.323]